[Event "Titled Tuesday Blitz May 30 Early 2023"]
[White "Vitiugov, Nikita"]
[Black "Duda, Jan-Krzysztof"]
[WhiteFideId "4152956"]
[BlackFideId "1170546"]
[WhiteElo "2673"]
[BlackElo "2790"]
[Result "0-1"]
[Round "05"]
[TimeControl "180+2"]
[Date "2023.05.30"]
[WhiteClock "0:00:00"]
[BlackClock "0:00:04"]

1. Nf3 {[%clk 0:03:00]}  Nf6 {[%clk 0:02:58]} 2. c4 {[%clk 0:02:58]}  g6 {[%clk 0:02:58]} 3. Nc3 {[%clk 0:02:58]}  d5 {[%clk 0:02:59]} 4. cxd5 {[%clk 0:02:57]}  Nxd5 {[%clk 0:03:00]} 5. Qa4+ {[%clk 0:02:56]}  Nc6 {[%clk 0:02:59]} 6. Ne5 {[%clk 0:02:56]}  Qd6 {[%clk 0:02:57]} 7. Nxc6 {[%clk 0:02:53]}  Qxc6 {[%clk 0:02:56]} 8. Qxc6+ {[%clk 0:02:52]}  bxc6 {[%clk 0:02:57]} 9. g3 {[%clk 0:02:52]}  Bg7 {[%clk 0:02:52]} 10. Bg2 {[%clk 0:02:51]}  Be6 {[%clk 0:02:50]} 11. a3 {[%clk 0:02:36]}  Rb8 {[%clk 0:02:45]} 12. O-O {[%clk 0:02:27]}  O-O {[%clk 0:02:45]} 13. e3 {[%clk 0:02:25]}  Nxc3 {[%clk 0:02:18]} 14. bxc3 {[%clk 0:02:15]}  c5 {[%clk 0:02:18]} 15. a4 {[%clk 0:02:07]}  Bc4 {[%clk 0:02:08]} 16. Re1 {[%clk 0:02:03]}  Be5 {[%clk 0:01:48]} 17. Ba3 {[%clk 0:01:59]}  Bd6 {[%clk 0:01:48]} 18. d4 {[%clk 0:01:48]}  Rb3 {[%clk 0:01:43]} 19. Bxc5 {[%clk 0:01:34]}  Bxc5 {[%clk 0:01:40]} 20. dxc5 {[%clk 0:01:35]}  Rfb8 {[%clk 0:01:37]} 21. Rec1 {[%clk 0:01:23]}  e5 {[%clk 0:01:33]} 22. Bf1 {[%clk 0:01:19]}  Bxf1 {[%clk 0:01:24]} 23. Kxf1 {[%clk 0:01:20]}  Rb2 {[%clk 0:01:19]} 24. Kg2 {[%clk 0:01:12]}  R8b3 {[%clk 0:01:13]} 25. g4 {[%clk 0:01:08]}  Kf8 {[%clk 0:00:54]} 26. Kf3 {[%clk 0:01:06]}  Ke7 {[%clk 0:00:55]} 27. a5 {[%clk 0:01:01]}  Ke6 {[%clk 0:00:53]} 28. a6 {[%clk 0:00:58]}  Rb5 {[%clk 0:00:41]} 29. c4 {[%clk 0:00:54]}  Rxc5 {[%clk 0:00:41]} 30. h4 {[%clk 0:00:41]}  e4+ {[%clk 0:00:28]} 31. Kg3 {[%clk 0:00:38]}  h5 {[%clk 0:00:28]} 32. gxh5 {[%clk 0:00:35]}  Rxh5 {[%clk 0:00:24]} 33. Rab1 {[%clk 0:00:33]}  Ra2 {[%clk 0:00:20]} 34. Ra1 {[%clk 0:00:33]}  Rxa1 {[%clk 0:00:19]} 35. Rxa1 {[%clk 0:00:32]}  Rc5 {[%clk 0:00:17]} 36. Rb1 {[%clk 0:00:30]}  Rc6 {[%clk 0:00:04]} 37. Rb7 {[%clk 0:00:28]}  Rxa6 {[%clk 0:00:05]} 38. Rxc7 {[%clk 0:00:28]}  Ra2 {[%clk 0:00:05]} 39. c5 {[%clk 0:00:17]}  a5 {[%clk 0:00:06]} 40. Ra7 {[%clk 0:00:15]}  a4 {[%clk 0:00:06]} 41. c6 {[%clk 0:00:15]}  a3 {[%clk 0:00:06]} 42. c7 {[%clk 0:00:15]}  Kd7 {[%clk 0:00:06]} 43. Kf4 {[%clk 0:00:13]}  Rxf2+ {[%clk 0:00:06]} 44. Kxe4 {[%clk 0:00:12]}  a2 {[%clk 0:00:06]} 45. Kd3 {[%clk 0:00:07]}  f6 {[%clk 0:00:05]} 46. e4 {[%clk 0:00:06]}  Rh2 {[%clk 0:00:04]} 47. Ke3 {[%clk 0:00:04]}  Rh3+ {[%clk 0:00:04]} 48. Kd4 {[%clk 0:00:02]}  Rxh4 {[%clk 0:00:04]} 49. Rxa2 {[%clk 0:00:02]}  f5 {[%clk 0:00:04]} 50. Kd5 {[%clk 0:00:01]}  Rxe4 {[%clk 0:00:04]} 51. Rc2 {[%clk 0:00:00]}  Re8 {[%clk 0:00:04]} 0-1


[Site "https://www.chess.com"]

[Event "Titled Tuesday Blitz May 30 Early 2023"]
[White "Deac, Bogdan-Daniel"]
[Black "Kravtsiv, Martyn"]
[WhiteFideId "1226380"]
[BlackFideId "14113147"]
[WhiteElo "2649"]
[BlackElo "2695"]
[Result "1-0"]
[Round "05"]
[TimeControl "180+2"]
[Date "2023.05.30"]
[WhiteClock "0:00:21"]
[BlackClock "0:00:02"]

1. e4 {[%clk 0:02:56]}  e5 {[%clk 0:02:59]} 2. Nf3 {[%clk 0:02:57]}  Nc6 {[%clk 0:02:59]} 3. Bb5 {[%clk 0:02:57]}  a6 {[%clk 0:02:58]} 4. Bxc6 {[%clk 0:02:58]}  dxc6 {[%clk 0:02:58]} 5. Nc3 {[%clk 0:02:59]}  f6 {[%clk 0:02:55]} 6. d4 {[%clk 0:02:59]}  exd4 {[%clk 0:02:55]} 7. Qxd4 {[%clk 0:03:00]}  Qxd4 {[%clk 0:02:54]} 8. Nxd4 {[%clk 0:03:00]}  Bd7 {[%clk 0:02:52]} 9. Be3 {[%clk 0:03:01]}  O-O-O {[%clk 0:02:49]} 10. O-O-O {[%clk 0:03:00]}  Ne7 {[%clk 0:02:48]} 11. h4 {[%clk 0:02:52]}  b6 {[%clk 0:02:47]} 12. h5 {[%clk 0:02:48]}  c5 {[%clk 0:02:45]} 13. Nde2 {[%clk 0:02:47]}  Nc6 {[%clk 0:02:42]} 14. h6 {[%clk 0:02:32]}  gxh6 {[%clk 0:02:29]} 15. Bxh6 {[%clk 0:01:52]}  f5 {[%clk 0:01:59]} 16. Bg5 {[%clk 0:01:26]}  Re8 {[%clk 0:00:53]} 17. Bf6 {[%clk 0:01:25]}  Rg8 {[%clk 0:00:54]} 18. Rxh7 {[%clk 0:01:25]}  Bd6 {[%clk 0:00:54]} 19. Nd5 {[%clk 0:00:44]}  Rxe4 {[%clk 0:00:21]} 20. Nxb6+ {[%clk 0:00:28]}  cxb6 {[%clk 0:00:21]} 21. Rxd6 {[%clk 0:00:29]}  Be8 {[%clk 0:00:09]} 22. Nc3 {[%clk 0:00:23]}  Rf4 {[%clk 0:00:03]} 23. Nd5 {[%clk 0:00:20]}  Rxf2 {[%clk 0:00:03]} 24. Nxb6+ {[%clk 0:00:20]}  Kb8 {[%clk 0:00:03]} 25. Rd8+ {[%clk 0:00:20]}  Nxd8 {[%clk 0:00:02]} 26. Be5# {[%clk 0:00:21]} 1-0


[Site "https://www.chess.com"]

[Event "Titled Tuesday Blitz May 30 Early 2023"]
[White "OPQRC"]
[Black "Durarbayli, Vasif"]
[BlackFideId "13402935"]
[WhiteElo "2552"]
[BlackElo "2551"]
[Result "0-1"]
[Round "05"]
[TimeControl "180+2"]
[Date "2023.05.30"]
[WhiteClock "0:00:06"]
[BlackClock "0:01:34"]

1. e4 {[%clk 0:03:00]}  c5 {[%clk 0:02:57]} 2. Nf3 {[%clk 0:03:00]}  d6 {[%clk 0:02:58]} 3. d4 {[%clk 0:03:00]}  cxd4 {[%clk 0:02:59]} 4. Nxd4 {[%clk 0:03:01]}  Nf6 {[%clk 0:03:00]} 5. Nc3 {[%clk 0:03:01]}  Nc6 {[%clk 0:03:00]} 6. Bg5 {[%clk 0:03:01]}  Qb6 {[%clk 0:03:01]} 7. Nb3 {[%clk 0:02:53]}  e6 {[%clk 0:03:01]} 8. Qd2 {[%clk 0:02:50]}  a6 {[%clk 0:03:01]} 9. O-O-O {[%clk 0:02:50]}  Be7 {[%clk 0:03:01]} 10. f3 {[%clk 0:02:44]}  O-O {[%clk 0:03:01]} 11. g4 {[%clk 0:02:35]}  Rd8 {[%clk 0:03:00]} 12. h4 {[%clk 0:01:51]}  Qc7 {[%clk 0:02:59]} 13. h5 {[%clk 0:01:43]}  b5 {[%clk 0:02:58]} 14. Bxf6 {[%clk 0:01:36]}  Bxf6 {[%clk 0:02:59]} 15. g5 {[%clk 0:01:36]}  Be7 {[%clk 0:02:49]} 16. g6 {[%clk 0:01:34]}  fxg6 {[%clk 0:02:37]} 17. hxg6 {[%clk 0:01:35]}  h6 {[%clk 0:02:37]} 18. Bh3 {[%clk 0:00:59]}  d5 {[%clk 0:02:31]} 19. Kb1 {[%clk 0:00:23]}  d4 {[%clk 0:02:27]} 20. Ne2 {[%clk 0:00:22]}  e5 {[%clk 0:02:27]} 21. Bxc8 {[%clk 0:00:21]}  Raxc8 {[%clk 0:02:28]} 22. f4 {[%clk 0:00:19]}  Nb4 {[%clk 0:02:02]} 23. fxe5 {[%clk 0:00:19]}  d3 {[%clk 0:01:45]} 24. cxd3 {[%clk 0:00:15]}  Rxd3 {[%clk 0:01:45]} 25. Qc1 {[%clk 0:00:10]}  Qd7 {[%clk 0:01:40]} 26. Qf4 {[%clk 0:00:07]}  Rxd1+ {[%clk 0:01:40]} 27. Rxd1 {[%clk 0:00:05]}  Qxd1+ {[%clk 0:01:34]} 28. Nec1 {[%clk 0:00:06]} 0-1


[Site "https://www.chess.com"]

[Event "Titled Tuesday Blitz May 30 Early 2023"]
[White "Nepomniachtchi, Ian"]
[Black "Steinberg, Nitzan"]
[WhiteFideId "4168119"]
[BlackFideId "2801795"]
[WhiteElo "2781"]
[BlackElo "2486"]
[Result "1-0"]
[Round "05"]
[TimeControl "180+2"]
[Date "2023.05.30"]
[WhiteClock "0:00:31"]
[BlackClock "0:00:01"]

1. e4 {[%clk 0:03:00]}  c5 {[%clk 0:03:00]} 2. Nf3 {[%clk 0:03:00]}  e6 {[%clk 0:03:01]} 3. d4 {[%clk 0:03:00]}  cxd4 {[%clk 0:03:01]} 4. Nxd4 {[%clk 0:03:01]}  Nc6 {[%clk 0:03:02]} 5. Nc3 {[%clk 0:03:02]}  Qc7 {[%clk 0:03:03]} 6. Be3 {[%clk 0:03:00]}  a6 {[%clk 0:03:03]} 7. g4 {[%clk 0:02:59]}  d6 {[%clk 0:02:57]} 8. g5 {[%clk 0:02:57]}  Bd7 {[%clk 0:02:54]} 9. Nxc6 {[%clk 0:02:44]}  Bxc6 {[%clk 0:02:31]} 10. Bg2 {[%clk 0:02:44]}  b5 {[%clk 0:02:31]} 11. Qd4 {[%clk 0:02:42]}  e5 {[%clk 0:02:17]} 12. Qd3 {[%clk 0:02:29]}  Ne7 {[%clk 0:02:15]} 13. O-O-O {[%clk 0:02:29]}  Ng6 {[%clk 0:02:15]} 14. Kb1 {[%clk 0:02:25]}  Be7 {[%clk 0:01:45]} 15. h4 {[%clk 0:02:24]}  O-O {[%clk 0:01:21]} 16. h5 {[%clk 0:02:23]}  Nf4 {[%clk 0:01:22]} 17. Bxf4 {[%clk 0:02:23]}  exf4 {[%clk 0:01:22]} 18. h6 {[%clk 0:02:24]}  g6 {[%clk 0:01:07]} 19. Qd4 {[%clk 0:02:22]}  f6 {[%clk 0:01:07]} 20. Bh3 {[%clk 0:02:17]}  Kh8 {[%clk 0:01:04]} 21. Ne2 {[%clk 0:02:06]}  Qa7 {[%clk 0:01:01]} 22. Qc3 {[%clk 0:01:41]}  Qc5 {[%clk 0:01:01]} 23. Qd3 {[%clk 0:01:29]}  fxg5 {[%clk 0:00:55]} 24. Nd4 {[%clk 0:01:29]}  Bf6 {[%clk 0:00:49]} 25. c3 {[%clk 0:01:29]}  Rae8 {[%clk 0:00:47]} 26. f3 {[%clk 0:01:27]}  Bb7 {[%clk 0:00:21]} 27. Ne6 {[%clk 0:01:25]}  Rxe6 {[%clk 0:00:21]} 28. Bxe6 {[%clk 0:01:26]}  Be5 {[%clk 0:00:22]} 29. Rhg1 {[%clk 0:01:14]}  b4 {[%clk 0:00:16]} 30. Rxg5 {[%clk 0:00:58]}  bxc3 {[%clk 0:00:16]} 31. bxc3 {[%clk 0:00:55]}  Rb8 {[%clk 0:00:15]} 32. Bb3 {[%clk 0:00:54]}  a5 {[%clk 0:00:14]} 33. Kc2 {[%clk 0:00:46]}  Rc8 {[%clk 0:00:07]} 34. Rxe5 {[%clk 0:00:41]}  Qxe5 {[%clk 0:00:07]} 35. Qxd6 {[%clk 0:00:34]}  Qxc3+ {[%clk 0:00:03]} 36. Kb1 {[%clk 0:00:34]}  Rg8 {[%clk 0:00:01]} 37. Bxg8 {[%clk 0:00:32]}  Kxg8 {[%clk 0:00:01]} 38. Qd8+ {[%clk 0:00:31]} 1-0


[Site "https://www.chess.com"]

[Event "Titled Tuesday Blitz May 30 Early 2023"]
[White "Pranav, V"]
[Black "Pichot, Alan"]
[WhiteFideId "25060783"]
[BlackFideId "110973"]
[WhiteElo "2515"]
[BlackElo "2573"]
[Result "1-0"]
[Round "05"]
[TimeControl "180+2"]
[Date "2023.05.30"]
[WhiteClock "0:00:12"]
[BlackClock "0:00:00"]

1. e4 {[%clk 0:03:00]}  e5 {[%clk 0:02:55]} 2. Nf3 {[%clk 0:03:00]}  Nc6 {[%clk 0:02:56]} 3. Bc4 {[%clk 0:02:58]}  Nf6 {[%clk 0:02:55]} 4. d3 {[%clk 0:02:57]}  h6 {[%clk 0:02:53]} 5. O-O {[%clk 0:02:57]}  d6 {[%clk 0:02:52]} 6. a4 {[%clk 0:02:57]}  g5 {[%clk 0:02:51]} 7. a5 {[%clk 0:02:55]}  a6 {[%clk 0:02:46]} 8. c3 {[%clk 0:02:55]}  Bg7 {[%clk 0:02:46]} 9. Nbd2 {[%clk 0:02:54]}  O-O {[%clk 0:02:45]} 10. Re1 {[%clk 0:02:54]}  Be6 {[%clk 0:02:28]} 11. Nf1 {[%clk 0:02:45]}  d5 {[%clk 0:02:20]} 12. exd5 {[%clk 0:02:42]}  Nxd5 {[%clk 0:02:21]} 13. Ng3 {[%clk 0:02:42]}  f5 {[%clk 0:02:13]} 14. Nh5 {[%clk 0:02:39]}  Bh8 {[%clk 0:02:13]} 15. Nd4 {[%clk 0:02:34]}  Nxd4 {[%clk 0:01:55]} 16. cxd4 {[%clk 0:02:31]}  Qd6 {[%clk 0:01:45]} 17. Bd2 {[%clk 0:02:10]}  Rae8 {[%clk 0:01:28]} 18. Qb3 {[%clk 0:01:57]}  c6 {[%clk 0:01:25]} 19. dxe5 {[%clk 0:01:38]}  Bxe5 {[%clk 0:01:23]} 20. Ng3 {[%clk 0:00:45]}  Re7 {[%clk 0:01:20]} 21. Re2 {[%clk 0:00:43]}  Bd4 {[%clk 0:01:14]} 22. Rae1 {[%clk 0:00:42]}  f4 {[%clk 0:00:40]} 23. Ne4 {[%clk 0:00:27]}  Qd7 {[%clk 0:00:41]} 24. Nc3 {[%clk 0:00:22]}  Bxc3 {[%clk 0:00:14]} 25. Bxc3 {[%clk 0:00:22]}  f3 {[%clk 0:00:14]} 26. Re4 {[%clk 0:00:19]}  fxg2 {[%clk 0:00:14]} 27. Bb4 {[%clk 0:00:19]}  Rfe8 {[%clk 0:00:02]} 28. Bxe7 {[%clk 0:00:19]}  Rxe7 {[%clk 0:00:03]} 29. d4 {[%clk 0:00:13]}  Qd6 {[%clk 0:00:00]} 30. Qg3 {[%clk 0:00:12]} 1-0


[Site "https://www.chess.com"]

[Event "Titled Tuesday Blitz May 30 Early 2023"]
[White "Narayanan.S.L"]
[Black "Bjerre, Jonas Buhl"]
[WhiteFideId "5058422"]
[BlackFideId "1444948"]
[WhiteElo "2563"]
[BlackElo "2525"]
[Result "0-1"]
[Round "05"]
[TimeControl "180+2"]
[Date "2023.05.30"]
[WhiteClock "0:02:02"]
[BlackClock "0:01:40"]

1. Nf3 {[%clk 0:03:00]}  Nf6 {[%clk 0:02:59]} 2. g3 {[%clk 0:03:00]}  c5 {[%clk 0:02:58]} 3. Bg2 {[%clk 0:03:01]}  Nc6 {[%clk 0:02:58]} 4. O-O {[%clk 0:03:01]}  e5 {[%clk 0:02:55]} 5. d3 {[%clk 0:03:02]}  d5 {[%clk 0:02:55]} 6. Bg5 {[%clk 0:03:02]}  Be7 {[%clk 0:02:53]} 7. Bxf6 {[%clk 0:03:02]}  Bxf6 {[%clk 0:02:53]} 8. e4 {[%clk 0:03:02]}  d4 {[%clk 0:02:53]} 9. Nbd2 {[%clk 0:03:01]}  O-O {[%clk 0:02:53]} 10. Ne1 {[%clk 0:03:01]}  Rb8 {[%clk 0:02:50]} 11. f4 {[%clk 0:02:59]}  b5 {[%clk 0:02:48]} 12. Kh1 {[%clk 0:02:58]}  c4 {[%clk 0:02:44]} 13. dxc4 {[%clk 0:02:53]}  bxc4 {[%clk 0:02:44]} 14. Nxc4 {[%clk 0:02:53]}  Ba6 {[%clk 0:02:41]} 15. b3 {[%clk 0:02:54]}  Bxc4 {[%clk 0:02:37]} 16. bxc4 {[%clk 0:02:55]}  Na5 {[%clk 0:02:36]} 17. Nd3 {[%clk 0:02:40]}  Nxc4 {[%clk 0:02:35]} 18. Qe2 {[%clk 0:02:39]}  Qc7 {[%clk 0:02:33]} 19. Rfb1 {[%clk 0:02:39]}  Ne3 {[%clk 0:02:23]} 20. c3 {[%clk 0:02:21]}  Qxc3 {[%clk 0:01:55]} 21. Rc1 {[%clk 0:02:18]}  Qa3 {[%clk 0:01:52]} 22. fxe5 {[%clk 0:02:17]}  Be7 {[%clk 0:01:51]} 23. Bf3 {[%clk 0:02:12]}  Rfc8 {[%clk 0:01:41]} 24. Nf4 {[%clk 0:02:02]}  Rxc1+ {[%clk 0:01:40]} 0-1


[Site "https://www.chess.com"]

[Event "Titled Tuesday Blitz May 30 Early 2023"]
[White "Uzcategui Rodriguez, Alejandro"]
[Black "Pranesh M"]
[WhiteFideId "3903400"]
[BlackFideId "35028600"]
[WhiteElo "2252"]
[BlackElo "2437"]
[Result "0-1"]
[Round "05"]
[TimeControl "180+2"]
[Date "2023.05.30"]
[WhiteClock "0:00:25"]
[BlackClock "0:00:04"]

1. d4 {[%clk 0:03:00]}  d5 {[%clk 0:02:56]} 2. Nf3 {[%clk 0:03:00]}  Nf6 {[%clk 0:02:55]} 3. c3 {[%clk 0:03:01]}  g6 {[%clk 0:02:55]} 4. Bg5 {[%clk 0:03:00]}  Bg7 {[%clk 0:02:56]} 5. Nbd2 {[%clk 0:03:00]}  O-O {[%clk 0:02:57]} 6. e3 {[%clk 0:03:01]}  Nbd7 {[%clk 0:02:57]} 7. Be2 {[%clk 0:03:01]}  c5 {[%clk 0:02:58]} 8. O-O {[%clk 0:03:01]}  b6 {[%clk 0:02:58]} 9. a3 {[%clk 0:03:01]}  Bb7 {[%clk 0:02:59]} 10. b4 {[%clk 0:03:02]}  Rc8 {[%clk 0:02:57]} 11. bxc5 {[%clk 0:02:58]}  bxc5 {[%clk 0:02:58]} 12. Rb1 {[%clk 0:02:52]}  Nb6 {[%clk 0:02:53]} 13. a4 {[%clk 0:02:46]}  cxd4 {[%clk 0:02:50]} 14. cxd4 {[%clk 0:02:44]}  Ne4 {[%clk 0:02:41]} 15. a5 {[%clk 0:02:39]}  Nc3 {[%clk 0:01:48]} 16. Qe1 {[%clk 0:02:25]}  Nxb1 {[%clk 0:01:36]} 17. Qxb1 {[%clk 0:02:23]}  h6 {[%clk 0:01:30]} 18. Bh4 {[%clk 0:02:17]}  Nc4 {[%clk 0:01:14]} 19. Nxc4 {[%clk 0:02:08]}  dxc4 {[%clk 0:01:15]} 20. Qxb7 {[%clk 0:02:08]}  Qxa5 {[%clk 0:01:15]} 21. Bxe7 {[%clk 0:01:58]}  Rfe8 {[%clk 0:00:53]} 22. Bc5 {[%clk 0:01:58]}  Qa2 {[%clk 0:00:49]} 23. Re1 {[%clk 0:01:44]}  c3 {[%clk 0:00:40]} 24. Qb4 {[%clk 0:01:10]}  Qb2 {[%clk 0:00:24]} 25. Qxb2 {[%clk 0:00:50]}  cxb2 {[%clk 0:00:25]} 26. Rb1 {[%clk 0:00:50]}  a5 {[%clk 0:00:25]} 27. Rxb2 {[%clk 0:00:49]}  Rxc5 {[%clk 0:00:25]} 28. g3 {[%clk 0:00:40]}  Rc7 {[%clk 0:00:24]} 29. Nd2 {[%clk 0:00:38]}  a4 {[%clk 0:00:23]} 30. Ra2 {[%clk 0:00:38]}  Ra8 {[%clk 0:00:20]} 31. Bb5 {[%clk 0:00:38]}  a3 {[%clk 0:00:20]} 32. Nc4 {[%clk 0:00:37]}  Rb8 {[%clk 0:00:19]} 33. Nxa3 {[%clk 0:00:34]}  Bf8 {[%clk 0:00:14]} 34. Bd3 {[%clk 0:00:30]}  Rc3 {[%clk 0:00:13]} 35. Bxg6 {[%clk 0:00:25]}  Rxa3 {[%clk 0:00:09]} 36. Rc2 {[%clk 0:00:25]}  fxg6 {[%clk 0:00:08]} 37. Rc6 {[%clk 0:00:26]}  Kf7 {[%clk 0:00:07]} 38. h4 {[%clk 0:00:27]}  Be7 {[%clk 0:00:06]} 39. Kg2 {[%clk 0:00:28]}  h5 {[%clk 0:00:06]} 40. g4 {[%clk 0:00:28]}  hxg4 {[%clk 0:00:06]} 41. Kg3 {[%clk 0:00:28]}  Ra2 {[%clk 0:00:06]} 42. e4 {[%clk 0:00:27]}  Rb3+ {[%clk 0:00:06]} 43. Kxg4 {[%clk 0:00:27]}  Rxf2 {[%clk 0:00:06]} 44. d5 {[%clk 0:00:27]}  Re3 {[%clk 0:00:06]} 45. Re6 {[%clk 0:00:27]}  Bf6 {[%clk 0:00:04]} 46. h5 {[%clk 0:00:26]}  gxh5+ {[%clk 0:00:04]} 47. Kxh5 {[%clk 0:00:27]}  Rf4 {[%clk 0:00:04]} 48. e5 {[%clk 0:00:25]}  Rh3# {[%clk 0:00:04]} 0-1


[Site "https://www.chess.com"]

[Event "Titled Tuesday Blitz May 30 Early 2023"]
[White "Dubov, Daniil"]
[Black "Vakhlamov, Igor L."]
[WhiteFideId "24126055"]
[BlackFideId "24126748"]
[WhiteElo "2793"]
[BlackElo "2407"]
[Result "1-0"]
[Round "05"]
[TimeControl "180+2"]
[Date "2023.05.30"]
[WhiteClock "0:00:17"]
[BlackClock "0:00:00"]

1. c4 {[%clk 0:02:59]}  e6 {[%clk 0:02:59]} 2. g3 {[%clk 0:03:00]}  d5 {[%clk 0:03:00]} 3. Bg2 {[%clk 0:03:00]}  Nf6 {[%clk 0:03:00]} 4. d4 {[%clk 0:03:00]}  c5 {[%clk 0:02:48]} 5. Nf3 {[%clk 0:03:00]}  cxd4 {[%clk 0:02:46]} 6. O-O {[%clk 0:03:00]}  Bc5 {[%clk 0:02:46]} 7. Nxd4 {[%clk 0:02:55]}  O-O {[%clk 0:02:46]} 8. Nb3 {[%clk 0:02:51]}  Bb6 {[%clk 0:02:45]} 9. Nc3 {[%clk 0:02:48]}  dxc4 {[%clk 0:02:44]} 10. Nd2 {[%clk 0:02:48]}  Qc7 {[%clk 0:02:35]} 11. Qa4 {[%clk 0:02:46]}  Bd7 {[%clk 0:02:22]} 12. Qxc4 {[%clk 0:02:46]}  Bc6 {[%clk 0:02:21]} 13. Nde4 {[%clk 0:02:45]}  Nxe4 {[%clk 0:02:08]} 14. Bxe4 {[%clk 0:02:42]}  Bxe4 {[%clk 0:02:05]} 15. Qxc7 {[%clk 0:02:40]}  Bxc7 {[%clk 0:02:06]} 16. Nxe4 {[%clk 0:02:41]}  Nc6 {[%clk 0:02:00]} 17. Be3 {[%clk 0:02:41]}  Be5 {[%clk 0:01:54]} 18. Nc5 {[%clk 0:02:34]}  b6 {[%clk 0:01:33]} 19. Nd3 {[%clk 0:02:29]}  Bf6 {[%clk 0:01:26]} 20. Rac1 {[%clk 0:02:26]}  Rac8 {[%clk 0:01:24]} 21. Rfd1 {[%clk 0:02:13]}  Rfd8 {[%clk 0:01:21]} 22. Kg2 {[%clk 0:02:11]}  Kf8 {[%clk 0:01:20]} 23. Rc4 {[%clk 0:02:10]}  Ne5 {[%clk 0:01:07]} 24. Nxe5 {[%clk 0:02:10]}  Bxe5 {[%clk 0:01:01]} 25. b4 {[%clk 0:01:39]}  Rxc4 {[%clk 0:00:43]} 26. Rxd8+ {[%clk 0:01:38]}  Ke7 {[%clk 0:00:44]} 27. Ra8 {[%clk 0:01:39]}  Rxb4 {[%clk 0:00:37]} 28. Rxa7+ {[%clk 0:01:38]}  Ke8 {[%clk 0:00:37]} 29. Ra6 {[%clk 0:01:31]}  b5 {[%clk 0:00:31]} 30. Ra8+ {[%clk 0:01:29]}  Kd7 {[%clk 0:00:31]} 31. Ra7+ {[%clk 0:01:29]}  Ke8 {[%clk 0:00:28]} 32. Ra8+ {[%clk 0:00:45]}  Kd7 {[%clk 0:00:28]} 33. Rf8 {[%clk 0:00:45]}  f5 {[%clk 0:00:26]} 34. Rf7+ {[%clk 0:00:43]}  Ke8 {[%clk 0:00:25]} 35. Rb7 {[%clk 0:00:41]}  Bf6 {[%clk 0:00:22]} 36. Kf3 {[%clk 0:00:36]}  Ra4 {[%clk 0:00:21]} 37. Rxb5 {[%clk 0:00:32]}  Rxa2 {[%clk 0:00:21]} 38. Rb6 {[%clk 0:00:32]}  Kd7 {[%clk 0:00:21]} 39. Rb7+ {[%clk 0:00:31]}  Kc6 {[%clk 0:00:21]} 40. Rf7 {[%clk 0:00:29]}  Ra4 {[%clk 0:00:20]} 41. h3 {[%clk 0:00:28]}  Kd5 {[%clk 0:00:19]} 42. g4 {[%clk 0:00:27]}  h6 {[%clk 0:00:18]} 43. Bxh6 {[%clk 0:00:26]}  fxg4+ {[%clk 0:00:18]} 44. hxg4 {[%clk 0:00:26]}  Ra3+ {[%clk 0:00:16]} 45. e3 {[%clk 0:00:20]}  gxh6 {[%clk 0:00:05]} 46. Rxf6 {[%clk 0:00:19]}  h5 {[%clk 0:00:06]} 47. gxh5 {[%clk 0:00:19]}  Ke5 {[%clk 0:00:07]} 48. Rf4 {[%clk 0:00:18]}  Ra7 {[%clk 0:00:05]} 49. h6 {[%clk 0:00:17]}  Rh7 {[%clk 0:00:04]} 50. Rh4 {[%clk 0:00:17]}  Kf5 {[%clk 0:00:05]} 51. Rh1 {[%clk 0:00:17]}  e5 {[%clk 0:00:04]} 52. Rh5+ {[%clk 0:00:17]}  Kg6 {[%clk 0:00:04]} 53. Rxe5 {[%clk 0:00:16]}  Kxh6 {[%clk 0:00:05]} 54. Ke4 {[%clk 0:00:16]}  Kg6 {[%clk 0:00:05]} 55. f4 {[%clk 0:00:16]}  Ra7 {[%clk 0:00:05]} 56. Rg5+ {[%clk 0:00:17]}  Kf6 {[%clk 0:00:06]} 57. Kf3 {[%clk 0:00:17]}  Rg7 {[%clk 0:00:00]} 58. Rxg7 {[%clk 0:00:17]} 1-0


[Site "https://www.chess.com"]